fUSD/lending_fUSD_20240220
["ID","MTS","AMOUNT","RATE_DAILY","PERIOD"]
[314626216,1708467040537,-150.0,0.00044724,2]
[314626217,1708467040547,-150.0,0.00044724,2]
[314626218,1708467040556,-150.0,0.00044724,2]
[314626219,1708467040566,-150.0,0.00044724,2]
[314626220,1708467040576,-150.0,0.00044726,2]
[314626221,1708467040585,-150.0,0.00044727,2]
[314626222,1708467040595,-150.0,0.00044727,2]
[314626223,1708467040604,-150.0,0.00044733,2]
[314626224,1708467040614,-150.0,0.00044734,2]
[314626225,1708467040623,-150.0,0.00044736,2]
[314626226,1708467040632,-150.0,0.00044736,2]
[314626227,1708467040642,-150.0,0.00044736,2]
[314626228,1708467040651,-150.0,0.0004474,2]
[314626229,1708467040661,-150.0,0.00044741,2]
[314626230,1708467040670,-281.8797539,0.00044741,2]
[314626231,1708467040680,-150.0,0.00044742,2]
[314626232,1708467040689,-300.0,0.00044743,2]
[314626233,1708467040698,-150.0,0.00044749,2]
[314626234,1708467040707,-150.0,0.0004475,2]
[314626235,1708467040716,-1000.0,0.00044752,30]
[314626236,1708467040725,-150.0,0.00044764,2]
[314626237,1708467040735,-3932.2812419,0.0004477,19]
[314626238,1708467040745,-300.0,0.00044774,2]
[314626239,1708467040754,-150.0,0.00044775,2]
[314626240,1708467040763,-223.33054349,0.00044776,4]
[314626241,1708467040772,-1500.0,0.00044778,2]
[314626242,1708467040781,-150.0,0.00044779,2]
[314626243,1708467040791,-1500.0,0.00044781,2]
[314626244,1708467040800,-150.0,0.00044784,2]
[314626245,1708467040809,-150.0,0.00044786,2]
[314626246,1708467040819,-150.0,0.00044786,2]
[314626247,1708467040828,-1500.0,0.0004479,2]
[314626248,1708467040837,-150.0,0.00044791,2]
[314626249,1708467040847,-1500.0,0.00044791,2]
[314626250,1708467040856,-150.0,0.00044793,2]
[314626251,1708467040866,-150.0,0.00044793,2]
[314626252,1708467040875,-1500.0,0.00044793,2]
[314626253,1708467040885,-150.0,0.00044794,2]
[314626254,1708467040895,-150.0,0.00044795,2]
[314626255,1708467040905,-150.0,0.00044797,2]
[314626256,1708467040914,-157.022121,0.00044798,43]
[314626257,1708467040924,-150.0,0.00044798,2]
[314626258,1708467040933,-327.11601984,0.00044801,6]
[314626259,1708467040942,-1000.0,0.00044801,30]
[314626260,1708467040952,-547.25411483,0.00044801,8]
[314626261,1708467040961,-496.19422183,0.00044801,8]
[314626262,1708467040971,-150.0,0.00044801,2]
[314626263,1708467040980,-1000.0,0.00044801,30]
[314626264,1708467040990,-150.0,0.00044801,2]
[314626265,1708467040999,-300.0,0.00044802,2]
[314626266,1708467041009,-150.0,0.00044802,2]
[314626267,1708467041019,-150.0,0.00044805,2]
[314626268,1708467041028,-150.0,0.00044806,2]
[314626269,1708467041038,-150.0,0.00044807,2]
[314626270,1708467041047,-150.0,0.00044808,2]
[314626271,1708467041056,-150.0,0.00044808,2]
[314626272,1708467041065,-150.0,0.00044809,2]
[314626273,1708467041075,-150.0,0.0004481,2]
[314626274,1708467041085,-150.0,0.0004481,2]
[314626275,1708467041094,-150.0,0.0004481,2]
[314626276,1708467041104,-150.0,0.00044811,2]
[314626277,1708467041113,-281.40524622,0.00044813,8]
[314626278,1708467041122,-150.0,0.00044813,2]
[314626279,1708467041132,-150.0,0.00044816,2]
[314626280,1708467041141,-150.0,0.00044818,2]
[314626281,1708467041151,-150.0,0.00044819,2]
[314626282,1708467041160,-150.0,0.0004482,2]
[314626283,1708467041170,-1500.0,0.00044826,2]
[314626284,1708467041179,-150.0,0.00044827,2]
[314626285,1708467041189,-308.0507918,0.00044829,2]
[314626286,1708467041199,-150.0,0.0004483,2]
[314626287,1708467041208,-150.0,0.0004483,2]
[314626288,1708467041218,-150.0,0.00044831,2]
[314626289,1708467041228,-150.0,0.00044835,2]
[314626290,1708467041238,-150.0,0.00044835,2]
[314626291,1708467041247,-150.0,0.00044836,2]
[314626292,1708467041257,-159.0,0.00044836,7]
[314626293,1708467041266,-150.0,0.00044839,2]
[314626294,1708467041276,-5000.0,0.0004484,4]
[314626295,1708467041286,-300.0,0.00044841,2]
[314626296,1708467041296,-1500.0,0.00044845,2]
[314626297,1708467041305,-150.0,0.00044846,2]
[314626298,1708467041315,-150.0,0.00044847,2]
[314626299,1708467041324,-65740.916467,0.00044848,10]
[314626300,1708467041334,-1500.0,0.00044849,2]
[314626301,1708467041343,-491.11000051,0.00044852,8]
[314626302,1708467041355,-1197.98152571,0.00044852,5]
[314626303,1708467041365,-150.0,0.00044853,2]
[314626304,1708467041374,-150.0,0.00044855,2]
[314626305,1708467041383,-150.0,0.00044856,2]
[314626306,1708467041393,-150.0,0.00044856,2]
[314626307,1708467041403,-6967.3519045,0.00044858,2]
[314626308,1708467041412,-97504.8672418,0.00044858,2]
[314626309,1708467041423,-2944.5999453,0.00044858,2]
[314626310,1708467041433,-150.0,0.0004486,2]
[314626311,1708467041443,-153.23902836,0.00044862,2]
[314626312,1708467041453,-150.0,0.00044862,2]
[314626314,1708467041463,-150.0,0.00044862,2]
[314626315,1708467041472,-1500.0,0.00044863,2]
[314626316,1708467041482,-150.0,0.00044864,2]
[314626317,1708467041491,-2999.8817011,0.00044866,2]
[314626318,1708467041501,-150.0,0.00044866,2]
[314626319,1708467041511,-748.64,0.00044867,2]
[314626320,1708467041521,-2446.55844,0.00044867,25]
[314626321,1708467041531,-1790.1469267,0.00044867,2]
[314626322,1708467041541,-1500.0,0.00044868,2]
[314626323,1708467041550,-150.0,0.00044868,2]
[314626324,1708467041560,-446.76097164,0.0004487,2]
[314626325,1708467041570,-296.39160121,0.0004487,4]
[314626326,1708467041580,-65740.916467,0.00044871,10]
[314626327,1708467041591,-150.0,0.00044874,2]
[314626328,1708467041603,-150.0,0.00044879,2]
[314626329,1708467041613,-150.0,0.00044879,2]
[314626330,1708467041622,-347.7279917,0.0004488,60]
[314626331,1708467041631,-200000.0,0.00044881,30]
[314626332,1708467041642,-150.0,0.00044882,2]
[314626333,1708467041651,-150.0,0.0004489,2]
[314626334,1708467041661,-1500.0,0.00044896,2]
[314626335,1708467041671,-150.0,0.00044897,2]
[314626336,1708467041681,-157.022121,0.00044898,43]
[314626337,1708467041691,-6191.66781319,0.000449,7]
[314626338,1708467041701,-200.0,0.000449,21]
[314626339,1708467041711,-1618.78693436,0.000449,2]
[314626340,1708467041722,-365.87427048,0.000449,39]
[314626341,1708467041732,-456.93076856,0.000449,2]
[314626342,1708467041742,-1694.90358452,0.000449,2]
[314626343,1708467041751,-150.0,0.00044902,2]
[314626344,1708467041761,-150.0,0.00044903,2]
[314626345,1708467041771,-150.0,0.00044907,2]
[314626346,1708467041780,-9654.066924,0.00044907,6]
[314626347,1708467041790,-1500.0,0.00044909,2]
[314626348,1708467041801,-150.0,0.00044909,2]
[314626349,1708467041811,-1500.0,0.0004491,2]
[314626350,1708467041821,-150.0,0.00044911,2]
[314626351,1708467041831,-150.0,0.00044912,2]
[314626352,1708467041841,-150.0,0.00044912,2]
[314626353,1708467041853,-150.0,0.00044912,2]
[314626354,1708467041863,-150.0,0.00044914,2]
[314626355,1708467041874,-150.0,0.00044915,2]
[314626356,1708467041884,-150.0,0.00044915,2]
[314626357,1708467041894,-1500.0,0.00044916,2]
[314626358,1708467041904,-150.0,0.0004492,2]
[314626359,1708467041914,-150.0,0.00044923,2]
[314626360,1708467041924,-150.0,0.00044925,2]
[314626361,1708467041934,-150.0,0.00044926,2]
[314626362,1708467041945,-150.0,0.00044929,2]
[314626363,1708467041956,-150.0,0.00044931,2]
[314626364,1708467041967,-150.0,0.00044933,2]
[314626365,1708467041978,-150.0,0.00044935,2]
[314626366,1708467041988,-150.0,0.00044941,2]
[314626367,1708467041998,-150.0,0.00044942,2]
[314626368,1708467042008,-150.0,0.00044946,2]
[314626369,1708467042017,-150.0,0.00044949,2]
[314626370,1708467042027,-150.0,0.00044951,2]
[314626371,1708467042037,-150.0,0.00044951,2]
[314626372,1708467042047,-300.0,0.00044953,2]
[314626373,1708467042057,-300.0,0.00044955,2]
[314626374,1708467042066,-150.0,0.00044956,2]
[314626375,1708467042076,-150.0,0.00044957,2]
[314626376,1708467042085,-150.0,0.00044958,2]
[314626377,1708467042095,-150.0,0.00044962,2]
[314626378,1708467042107,-150.0,0.00044963,2]
[314626379,1708467042116,-150.0,0.00044968,2]
[314626380,1708467042126,-1500.0,0.00044968,2]
[314626381,1708467042136,-150.0,0.00044969,2]
[314626382,1708467042145,-500.0,0.00044969,4]
[314626383,1708467042154,-500.0,0.00044969,4]
[314626384,1708467042164,-500.0,0.00044969,4]
[314626385,1708467042172,-500.0,0.00044969,4]
[314626386,1708467042182,-500.0,0.00044969,4]
[314626387,1708467042191,-500.0,0.00044969,4]
[314626388,1708467042200,-500.0,0.00044969,4]
[314626389,1708467042209,-500.0,0.00044969,4]
[314626390,1708467042219,-500.0,0.00044969,4]
[314626391,1708467042228,-500.0,0.00044969,4]
[314626392,1708467042237,-500.0,0.00044969,4]
[314626393,1708467042246,-500.0,0.00044969,4]
[314626394,1708467042256,-252.0,0.00044969,4]
[314626395,1708467042265,-600.0,0.0004497,3]
[314626396,1708467042274,-267.90591627,0.00044976,2]
[314626397,1708467042283,-300.0,0.00044978,2]
[314626398,1708467042293,-150.0,0.00044978,2]
[314626399,1708467042302,-361.3377407,0.00044982,2]
[314626400,1708467042311,-150.0,0.00044983,2]
[314626401,1708467042320,-113451.0,0.00044986,30]
[314626402,1708467042330,-3853.46654368,0.00044987,2]
[314626403,1708467042340,-2013098.08655114,0.00044988,4]
[314626404,1708467042355,-4979.89112243,0.00044988,2]
[314626405,1708467042365,-162.38833905,0.00044988,2]
[314626406,1708467042374,-2262526.68476712,0.00044988,4]
[314626407,1708467042393,-158561.90355177,0.00044988,4]
[314626408,1708467042481,-500.0,0.00044719,2]
[314626409,1708467042492,-80.4,0.00044988,4]
[314626411,1708467042910,-158.0,0.00044,90]
[314626412,1708467042919,-500.0,0.00044719,2]
[314626413,1708467042928,-121.26,0.00044719,2]
[314626414,1708467042940,-378.74,0.00044719,2]
[314626415,1708467042949,-150.0,0.00044752,2]
[314626416,1708467042959,-150.0,0.00044813,2]
[314626417,1708467042969,-150.0,0.00044833,2]
[314626418,1708467042979,-150.0,0.0004484,2]
[314626419,1708467042989,-150.0,0.00044841,2]
[314626420,1708467042999,-150.0,0.00044847,2]
[314626421,1708467043010,-43.0893331,0.00044848,2]
[314626425,1708467043220,-500.0,0.00044719,2]
[314626426,1708467043231,-106.9106669,0.00044848,2]
[314626427,1708467043240,-150.0,0.00044905,2]
[314626428,1708467043250,-150.0,0.00044944,2]
[314626429,1708467043260,-150.0,0.00044967,2]
[314626430,1708467043269,-15584.0471149,0.00044988,4]
[314626431,1708467043675,-500.0,0.00044719,2]
[314626432,1708467043685,-500.0,0.00044719,2]
[314626433,1708467043695,-500.0,0.00044719,2]
[314626434,1708467043704,-500.0,0.00044719,2]
[314626435,1708467043713,-150.0,0.00044726,2]
[314626436,1708467043722,-150.0,0.00044727,2]
[314626437,1708467043731,-150.0,0.00044727,2]
[314626438,1708467043740,-150.0,0.00044728,2]
[314626439,1708467043750,-150.0,0.00044728,2]
[314626440,1708467043759,-150.0,0.00044772,2]
[314626441,1708467043768,-150.0,0.00044772,2]
[314626442,1708467043777,-150.0,0.00044774,2]
[314626443,1708467043786,-150.0,0.00044795,2]
[314626444,1708467043795,-150.0,0.00044799,2]
[314626445,1708467043805,-150.0,0.00044802,2]
[314626446,1708467043814,-150.0,0.00044815,2]
[314626447,1708467043823,-150.0,0.00044816,2]
[314626448,1708467043832,-150.0,0.00044826,2]
[314626449,1708467043841,-150.0,0.00044827,2]
[314626450,1708467043850,-150.0,0.0004483,2]
[314626451,1708467043859,-150.0,0.00044854,2]
[314626452,1708467043869,-150.0,0.00044869,2]
[314626453,1708467043878,-150.0,0.00044878,2]
[314626454,1708467043888,-150.0,0.00044891,2]
[314626455,1708467043898,-150.0,0.00044891,2]
[314626456,1708467043907,-150.0,0.00044893,2]
[314626457,1708467043916,-150.0,0.00044898,2]
[314626458,1708467043925,-150.0,0.00044908,2]
[314626459,1708467043934,-150.0,0.00044909,2]
[314626460,1708467043943,-150.0,0.00044924,2]
[314626461,1708467043953,-150.0,0.00044924,2]
[314626462,1708467043962,-150.0,0.00044924,2]
[314626463,1708467043972,-150.0,0.00044931,2]
[314626464,1708467043981,-150.0,0.00044944,2]
[314626465,1708467043991,-150.0,0.00044946,2]
[314626466,1708467044000,-150.0,0.0004495,2]
[314626467,1708467044010,-150.0,0.00044956,2]
[314626468,1708467044020,-150.0,0.00044973,2]
[314626469,1708467044029,-2743.98563394,0.00044988,4]
[314626470,1708467045095,-1234150.83420094,0.00044988,4]
[314626471,1708467045105,-65740.916467,0.0004499,10]
[314626472,1708467045115,-131481.832934,0.0004499,10]
[314626473,1708467045124,-2439.1289063,0.0004499,30]
[314626474,1708467045134,-3853.46654368,0.00044997,2]
[314626475,1708467045144,-543.59028848,0.00044999,2]
[314626476,1708467045153,-100000.0,0.00045,35]
[314626477,1708467045162,-10349.99999701,0.00045,120]
[314626478,1708467045172,-1145.92329187,0.00045,45]
[314626479,1708467045181,-174.44505996,0.00045,30]
[314626480,1708467045190,-401.60570304,0.00045,10]
[314626481,1708467045199,-9121.0,0.00045,10]
[314626482,1708467045208,-958572.2239118,0.00045,10]
[314626483,1708467045217,-2298.27406838,0.00045,7]
[314626484,1708467045226,-2034.18123742,0.00045,10]
[314626485,1708467045235,-1140.63897791,0.00045,30]
[314626486,1708467045244,-3486.1783674,0.00045,120]
[314626487,1708467045253,-1107.0,0.00045,5]
[314626488,1708467045262,-483.87,0.00045,4]
[314626489,1708467045271,-7701.0,0.00045,30]
[314626490,1708467045280,-2825.29567367,0.00045,8]
[314626491,1708467045289,-10000.0,0.00045,120]
[314626492,1708467045298,-3007.55731541,0.00045,30]
[314626493,1708467045307,-2007.89611009,0.00045,30]
[314626494,1708467045316,-2999.99999805,0.00045,60]
[314626495,1708467045325,-1098.16,0.00045,7]
[314626496,1708467045335,-5732.66270825,0.00045,2]
[314626497,1708467045344,-1740.62,0.00045,7]
[314626498,1708467045357,-511.632,0.00045,30]
[314626499,1708467045366,-500.0,0.00045001,30]
[314626500,1708467045375,-500.0,0.00045001,30]
[314626501,1708467045384,-500.0,0.00045001,30]
[314626502,1708467045393,-500.0,0.00045001,30]
[314626503,1708467045402,-500.0,0.00045001,30]
[314626504,1708467045411,-500.0,0.00045001,30]
[314626505,1708467045420,-502.0,0.00045001,30]
[314626506,1708467045430,-900.0,0.00045001,4]
[314626507,1708467045440,-900.0,0.00045001,4]
[314626508,1708467045450,-900.0,0.00045001,4]
[314626509,1708467045459,-900.0,0.00045001,4]
[314626510,1708467045468,-900.0,0.00045001,4]
[314626511,1708467045477,-900.0,0.00045001,4]
[314626512,1708467045487,-900.0,0.00045001,4]
[314626513,1708467045496,-900.0,0.00045001,4]
[314626514,1708467045505,-900.0,0.00045001,4]
[314626515,1708467045514,-900.0,0.00045001,4]
[314626516,1708467045524,-900.0,0.00045001,4]
[314626517,1708467045533,-900.0,0.00045001,4]
[314626518,1708467045543,-900.0,0.00045001,4]
[314626519,1708467045553,-900.0,0.00045001,4]
[314626520,1708467045562,-900.0,0.00045001,4]
[314626521,1708467045571,-900.0,0.00045001,4]
[314626522,1708467045581,-900.0,0.00045001,4]
[314626523,1708467045590,-900.0,0.00045001,4]
[314626524,1708467045599,-900.0,0.00045001,4]
[314626525,1708467045608,-900.0,0.00045001,4]
[314626527,1708467045618,-900.0,0.00045001,4]
[314626529,1708467045627,-900.0,0.00045001,4]
[314626531,1708467045637,-900.0,0.00045001,4]
[314626532,1708467045646,-900.0,0.00045001,4]
[314626533,1708467045655,-900.0,0.00045001,4]
[314626534,1708467045665,-900.0,0.00045001,4]
[314626536,1708467045674,-900.0,0.00045001,4]
[314626538,1708467045684,-900.0,0.00045001,4]
[314626539,1708467045693,-900.0,0.00045001,4]
[314626540,1708467045702,-900.0,0.00045001,4]
[314626541,1708467045712,-900.0,0.00045001,4]
[314626542,1708467045721,-900.0,0.00045001,4]
[314626544,1708467045730,-900.0,0.00045001,4]
[314626546,1708467045739,-900.0,0.00045001,4]
[314626548,1708467045748,-900.0,0.00045001,4]
[314626549,1708467045757,-900.0,0.00045001,4]
[314626551,1708467045767,-900.0,0.00045001,4]
[314626553,1708467045776,-900.0,0.00045001,4]
[314626555,1708467045785,-900.0,0.00045001,4]
[314626557,1708467045794,-900.0,0.00045001,4]
[314626559,1708467045803,-900.0,0.00045001,4]
[314626561,1708467045812,-900.0,0.00045001,4]
[314626563,1708467045821,-900.0,0.00045001,4]
[314626565,1708467045829,-900.0,0.00045001,4]
[314626567,1708467045838,-900.0,0.00045001,4]
[314626569,1708467045848,-900.0,0.00045001,4]
[314626571,1708467045856,-900.0,0.00045001,4]
[314626573,1708467045866,-900.0,0.00045001,4]
[314626575,1708467045875,-900.0,0.00045001,4]
[314626577,1708467045885,-900.0,0.00045001,4]
[314626578,1708467045894,-900.0,0.00045001,4]
[314626579,1708467045903,-900.0,0.00045001,4]
[314626580,1708467045911,-900.0,0.00045001,4]
[314626581,1708467045920,-900.0,0.00045001,4]
[314626582,1708467045929,-900.0,0.00045001,4]
[314626583,1708467045939,-900.0,0.00045001,4]
[314626584,1708467045948,-900.0,0.00045001,4]
[314626585,1708467045958,-900.0,0.00045001,4]
[314626586,1708467045967,-900.0,0.00045001,4]
[314626587,1708467045976,-900.0,0.00045001,4]
[314626588,1708467045985,-900.0,0.00045001,4]
[314626589,1708467045994,-900.0,0.00045001,4]
[314626590,1708467046143,-900.0,0.00045001,4]
[314626591,1708467046152,-900.0,0.00045001,4]
[314626592,1708467046161,-900.0,0.00045001,4]
[314626593,1708467046171,-900.0,0.00045001,4]
[314626594,1708467046180,-900.0,0.00045001,4]
[314626595,1708467046189,-900.0,0.00045001,4]
[314626596,1708467046199,-1009.0,0.00045001,4]
[314626597,1708467046208,-1446.3023855,0.00045015,2]
[314626598,1708467046218,-157.022121,0.00045048,47]
[314626600,1708467046227,-153.26,0.00045081,2]
[314626601,1708467046236,-1246.83153727,0.00045085,2]
[314626603,1708467046246,-577.51,0.000451,5]
[314626604,1708467046255,-577.51,0.000451,5]
[314626605,1708467046265,-577.51,0.000451,5]
[314626606,1708467046274,-577.51,0.000451,5]
[314626607,1708467046283,-577.51,0.000451,5]
[314626608,1708467046292,-577.51,0.000451,5]
[314626609,1708467046301,-577.51,0.000451,5]
[314626610,1708467046310,-577.51,0.000451,5]
[314626611,1708467046319,-577.51,0.000451,5]
[314626612,1708467046328,-577.51,0.000451,5]
[314626613,1708467046339,-577.51,0.000451,5]
[314626614,1708467046349,-577.51,0.000451,5]
[314626615,1708467046359,-577.51,0.000451,5]
[314626616,1708467046368,-577.51,0.000451,5]
[314626617,1708467046377,-577.51,0.000451,5]
[314626618,1708467046389,-577.51,0.000451,5]
[314626619,1708467046398,-577.51,0.000451,5]
[314626620,1708467046408,-577.51,0.000451,5]
[314626621,1708467046417,-577.51,0.000451,5]
[314626622,1708467046426,-577.51,0.000451,5]
[314626623,1708467046436,-2851.9033,0.0004514,30]
[314626624,1708467046447,-157.022121,0.00045148,43]
[314626625,1708467046457,-162.08,0.00045149,2]
[314626626,1708467046467,-225.062062,0.00045205,14]
[314626627,1708467046476,-151.022178,0.00045248,47]
[314626628,1708467046485,-153.523526,0.00045314,30]
[314626629,1708467046495,-151.022178,0.00045348,47]
[314626630,1708467046504,-152.70128307,0.00045355,27]
[314626631,1708467046514,-159.0,0.00045384,30]
[314626632,1708467046523,-1446.3023857,0.00045385,2]
[314626633,1708467046532,-200.0,0.000454,22]
[314626634,1708467046541,-187.3,0.0004543,2]
[314626635,1708467046550,-2292.0,0.00045437,2]
[314626636,1708467046560,-2931.0,0.00045437,2]
[314626637,1708467046569,-7427.0,0.00045437,2]
[314626638,1708467046578,-5636.0,0.00045437,2]
[314626639,1708467046587,-42635.0,0.00045437,2]
[314626640,1708467046596,-19872.0,0.00045437,2]
[314626641,1708467046606,-4103.0,0.00045437,2]
[314626642,1708467046615,-8174.0,0.00045437,2]
[314626643,1708467046624,-183.928,0.00045437,2]
[314626644,1708467046633,-208.036,0.00045437,2]
[314626645,1708467046642,-1038.0,0.00045437,2]
[314626646,1708467046651,-151.022178,0.00045448,43]
[314626647,1708467046659,-1760.43204822,0.00045477,5]
[314626648,1708467046668,-800.0,0.00045479,2]
[314626649,1708467046678,-1740.62,0.000455,7]
[314626650,1708467046688,-151.022178,0.00045548,47]
[314626651,1708467046697,-3853.46654368,0.0004555,2]
[314626652,1708467046705,-3932.2812419,0.00045552,20]
[314626653,1708467046715,-192.841516,0.00045597,30]
[314626654,1708467046723,-192.841515,0.00045597,30]
[314626655,1708467046732,-166.203312,0.00045597,30]
[314626656,1708467046741,-153.892779,0.00045597,30]
[314626657,1708467046750,-181.059627,0.00045597,30]
[314626658,1708467046759,-150.0,0.00045597,30]
[314626659,1708467046768,-1098.16,0.000456,7]
[314626660,1708467046777,-1016.0,0.000456,7]
[314626661,1708467046787,-151.022178,0.00045648,47]
[314626662,1708467046796,-231.693,0.00045703,2]
[314626663,1708467046805,-155.0,0.00045703,2]
[314626664,1708467046815,-158.0,0.00045703,2]
[314626665,1708467046824,-158.922,0.00045703,2]
[314626666,1708467046833,-202.0,0.00045703,2]
[314626667,1708467046842,-250.0,0.00045703,2]
[314626668,1708467046852,-235.769,0.00045703,2]
[314626669,1708467046861,-200.0,0.00045703,2]
[314626670,1708467046870,-248.28,0.00045703,2]
[314626671,1708467046879,-152.723,0.00045703,2]
[314626672,1708467046889,-152.972,0.00045703,2]
[314626673,1708467046898,-151.022178,0.00045748,43]
[314626674,1708467046908,-150.0,0.00045748,5]
[314626675,1708467046917,-150.0,0.00045748,5]
[314626676,1708467046927,-5000.0,0.00045749,4]
[314626677,1708467046937,-184.296,0.00045795,2]
[314626678,1708467046947,-226.666,0.00045795,2]
[314626679,1708467046957,-156.12,0.00045795,2]
[314626680,1708467046966,-150.0,0.00045795,2]
[314626681,1708467046976,-249.818,0.00045795,2]
[314626682,1708467046985,-150.0,0.00045795,2]
[314626683,1708467046995,-150.727,0.00045795,2]
[314626684,1708467047004,-533.572,0.00045795,2]
[314626685,1708467047013,-2692.0,0.00045795,2]
[314626686,1708467047022,-1870.149,0.00045795,2]
[314626687,1708467047031,-440.645,0.00045795,2]
[314626688,1708467047040,-454.0,0.00045795,2]
[314626689,1708467047049,-954.0,0.00045795,2]
[314626690,1708467047058,-843.0,0.00045795,2]
[314626691,1708467047068,-1951.0,0.00045795,2]
[314626692,1708467047077,-1256.0,0.00045795,2]
[314626693,1708467047086,-216.0,0.00045795,2]
[314626694,1708467047095,-601.952,0.00045795,2]
[314626695,1708467047105,-1231.0,0.00045795,2]
[314626696,1708467047114,-1324.55906625,0.000458,30]
[314626697,1708467047364,-1921.96658575,0.000458,30]
[314626698,1708467047374,-1736.00948259,0.000458,120]
[314626699,1708467047394,-538.015612,0.000458,120]
[314626700,1708467049811,-2451.78660741,0.000458,120]
[314626701,1708467049821,-625.88167119,0.000458,30]
[314626702,1708467049832,-3748.37079881,0.000458,30]
[314626703,1708467049841,-1217.909395,0.000458,120]
[314626704,1708467049852,-2436.564685,0.000458,30]
[314626705,1708467049862,-493.695523,0.000458,30]
[314626706,1708467049871,-4690.107423,0.000458,30]
[314626707,1708467049880,-1974.782073,0.000458,30]
[314626708,1708467049890,-3163.739034,0.000458,120]
[314626709,1708467049899,-1618.448077,0.000458,30]
[314626710,1708467049908,-1081.9123,0.000458,120]
[314626711,1708467049917,-3462.11936,0.000458,120]
[314626712,1708467049926,-38.04903673,0.000458,30]
[314626713,1708467050315,-440.09787204,0.00044888,2]
[314626714,1708467050324,-394.94,0.00044978,10]
[314626715,1708467050334,-157.25652357,0.00044988,2]
[314626716,1708467050343,-4979.89112243,0.00044988,2]
[314626717,1708467050357,-6903.76675622,0.00045,2]
[314626718,1708467050366,-3507.76562527,0.000458,30]
[314626719,1708467050376,-2533.917156,0.000458,30]
[314626720,1708467050386,-2952.823093,0.000458,120]
[314626721,1708467050395,-3970.849021,0.000458,120]
[314626722,1708467050405,-2558.392909,0.000458,30]
[314626723,1708467050414,-1979.58157,0.000458,30]
[314626724,1708467050424,-461.442291,0.000458,120]
[314626725,1708467050433,-4383.701736,0.000458,120]
[314626726,1708467050443,-1879.567482,0.000458,30]
[314626727,1708467050453,-1338.474516,0.000458,30]
[314626728,1708467050463,-319.799113,0.000458,30]
[314626729,1708467050472,-5869.243143,0.000458,120]
[314626730,1708467050482,-182.120004,0.000458,30]
[314626731,1708467050491,-800.0,0.000458,30]
[314626732,1708467050500,-1561.990351,0.000458,120]
[314626733,1708467050509,-3076.093747,0.000458,30]
[314626734,1708467050518,-1250.0,0.000458,30]
[314626735,1708467050528,-4046.120183,0.000458,30]
[314626736,1708467050537,-1990.951109,0.000458,30]
[314626737,1708467050546,-3371.59953,0.000458,30]
[314626738,1708467050555,-479.69867,0.000458,30]
[314626739,1708467050564,-2109.159356,0.000458,120]
[314626740,1708467050574,-341.739542,0.000458,30]
[314626741,1708467050583,-2109.159352,0.000458,120]
[314626742,1708467050592,-4654.206653,0.000458,120]
[314626743,1708467050601,-4041.839644,0.000458,120]
[314626744,1708467050610,-1253.62,0.00045828,15]